Workbook

Sheet Sheet1
E1: File Number: | F1: =EBNUMBER -> EB-2013-0160
E2: Exhibit: | F2: 3
E3: Tab: | F3: 2
E4: Schedule: | F4: 5
E5: Page: | F5: 1
E7: Date: | F7: 2014-02-12
A9: Appendix 2-I
A10: Load Forecast CDM Adjustment Work Form (2014)
A12: Input the 2011-2014 CDM target in Cell B21.
A14: Input the measured results for 2011 CDM programs for each of the years 2011 and persistence into 2012, 2013 and 2014 into cells B29 to E29. These results are taken from the final 2011 CDM Report issued by the OPA for that distributor in the fall of 2012.
A16: Measured results for 2012 CDM programs for each of the years 2012 and persistence into 2013 and 2014 are input into cells C30 to E30. These results are taken from the final 2012 CDM Report issued by the OPA for that distributor in the fall of 2013. Until that report is issued, the distributor should use the results from the preliminary 2012 CDM Report issued in the spring of 2013.
A18: Based on these inputs, the residual kWh to achieve the 4 year CDM target is allocated so that there is an equal incremental increase in each of the years 2012, 2013 and 2014.
A20: 4 Year (2011-2014) kWh Target:
A21: 11820000
B22: 2011 | C22: 2012 | D22: 2013 | E22: 2014 | F22: Total
A23: 2011 CDM Programs | B23: ='[2]CDM Data'!O6 -> 0.09813874788 | C23: ='[2]CDM Data'!P6 -> 0.09560067682 | D23: ='[2]CDM Data'!Q6 -> 0.09560067682 | E23: ='[2]CDM Data'!R6 -> 0.09475465313 | F23: =SUM(B23:E23) -> 0.3840947547
A24: 2012 CDM Programs | C24: ='[2]CDM Data'!P7 -> 0.08460236887 | D24: ='[2]CDM Data'!Q7 -> 0.07614213198 | E24: ='[2]CDM Data'!R7 -> 0.07614213198 | F24: =SUM(B24:E24) -> 0.2368866328
A25: 2013 CDM Programs | D25: ='[2]CDM Data'!Q8 -> 0.1263395375 | E25: ='[2]CDM Data'!R8 -> 0.1263395375 | F25: 0.252679075
A26: 2014 CDM Programs | E26: ='[2]CDM Data'!R9 -> 0.1263395375 | F26: 0.1263395375
A27: Total in Year | B27: =SUM(B23:B26) -> 0.09813874788 | C27: =SUM(C23:C26) -> 0.1802030457 | D27: 0.2980823463 | E27: 0.4235758601 | F27: =SUM(B27:E27) -> 1
A28: kWh
A29: 2011 CDM Programs | B29: ='[2]CDM Data'!O12 -> 1160000 | C29: ='[2]CDM Data'!P12 -> 1130000 | D29: ='[2]CDM Data'!Q12 -> 1130000 | E29: ='[2]CDM Data'!R12 -> 1120000 | F29: =SUM(B29:E29) -> 4540000
A30: 2012 CDM Programs | C30: ='[2]CDM Data'!P13 -> 1000000 | D30: ='[2]CDM Data'!Q13 -> 900000 | E30: ='[2]CDM Data'!R13 -> 900000 | F30: =SUM(B30:E30) -> 2800000
A31: 2013 CDM Programs | D31: ='[2]CDM Data'!Q14 -> 1493333.333 | E31: ='[2]CDM Data'!R14 -> 1493333.333 | F31: 2986666.667
A32: 2014 CDM Programs | E32: ='[2]CDM Data'!R15 -> 1493333.333 | F32: 1493333.333
A33: Total in Year | B33: =SUM(B29:B32) -> 1160000 | C33: =SUM(C29:C32) -> 2130000 | D33: 3523333.333 | E33: 5006666.667 | F33: =A21 -> 11820000
E35: Check | F35: =SUM(F29:F32) -> 11820000
A36: From each of the 2006-2010 CDM Final Report, 2011 CDM Final Report, and the 2012 CDM Final Report, issued by the OPA for the distributor, the distributor should input the "gross" and "net" results of the cumulative CDM savings for 2014 into cells D31 to E33. The model will calculate the cumulative savings for all programs from 2006 to 2012 and determine the "net" to "gross" factor "g".
A37: The Board has determined that the "net" number should be used in its Decision and Order with respect to Centre Wellington Hydro Ltd.'s 2013 Cost of Service rates (EB-2012-0113). This approach has also been used in Settlement Agreements accepted by the Board in other 2013 applications. The distributor should select whether the adjustment is done on a "net" or "gross" basis, but must support a proposal for the adjustment being done on a "gross" basis.
A39: Net-to-Gross Conversion
A41: Is CDM adjustment being done on a "net" or "gross" basis? | F41: net
C43: "Gross" | D43: "Net" | E43: Difference | F43: "Net-to-Gross" Conversion Factor
A44: Persistence of Historical CDM programs to 2014 | C44: kWh | D44: kWh | E44: kWh | F44: ('g')
A45: 2006-2010 CDM programs | C45: ='[2]CDM Data'!$J$33 -> 16402218.11 | D45: ='[2]CDM Data'!$K$33 -> 9965809.543 | E45: =C45-D45 -> 6436408.568 | F45: =E45/C45 -> 0.3924108632
A46: 2011 CDM program | C46: ='[2]CDM Data'!B8 -> 5120585.266 | D46: ='[2]CDM Data'!C8 -> 3065642.852 | E46: =C46-D46 -> 2054942.414 | F46: =E46/C46 -> 0.4013100665
A47: 2012 CDM program | C47: ='[2]CDM Data'!B9 -> 4972773.382 | D47: ='[2]CDM Data'!C9 -> 3002780.727 | E47: 1969992.655 | F47: 0.3961557271
A48: 2006 to 2011 OPA CDM programs: Persistence to 2013 | C48: =SUM(C45:C47) -> 26495576.76 | D48: =SUM(D45:D47) -> 16034233.12 | E48: =C48-D48 -> 10461343.64 | F48: =IF(D48=0,0,IF(F41="net",0,E48/D48)) -> 0
A50: The default values represent the factor that each year's CDM program is factored into the manual CDM adjustment. Distributors can choose alternative weights of "0", "0.5" or "1" from the drop-down menu for each cell, but must support its alternatives.
A51: These factors do not mean that CDM programs are excluded, but also reflect the assumption that impacts of 2011 and 2012 programs are already implicitly reflected in the actual data for those years that are the basis for the load forecast prior to any manual CDM adjustment.
A53: Weight Factor for Inclusion in CDM Adjustment to 2014 Load Forecast
B54: 2011 | C54: 2012 | D54: 2013 | E54: 2014
A55: Weight Factor for each year's CDM program impact on 2014 load forecast | B55: 0 | C55: 0.5 | D55: 1 | E55: 0.5 | F55: Utility can select "0", "0.5", or "1" from drop-down list
A56: Default Value selection rationale. | B56: Persistence of 2011 CDM programs for the full year of 2012 means that all of 2011 CDM impact is assumed to be in the base forecast before the CDM Adjustment | C56: 50% of 2012 CDM impact is assumed reflected in base forecast based on 1/2 year rule. | D56: Full year impact of 2013 CDM programs on adjustment for 2014 load forecast | E56: Only 50% of 2014 CDM impact is used based on a half year rule
A59: The Amount used for the CDM threshold of the LRAMVA is the kWh that will be used to determine the base amount for the LRAMVA balance for 2014, for assessing performance against the four-year target. The base amount for 2011-2013 is 0 (zero) for 2014 Cost of Service applications, as the utility rebased prior to the 2011-2014 CDM programs, and there was no adjustment to reflect the impacts of the 2011-2014 programs on the load forecast used to determine their last cost of service-based rates.
A61: The proposed loss factor should correspond with the loss factor calculated in Appendix 2-R
A63: The Manual Adjustment for the 2014 Load Forecast is the amount manually subtracted from the load forecast derived from the base forecast from historical data, and is intended to reflect the further CDM savings that the distributor needs to achieve assuming that they meet 100% of the 2011-2014 CDM target that is a condition of their target.
A65: If the distributor has developed their load forecast on a system purchased basis, then the manual adjustment should be on system purchased basis, including the adjustment for losses. If the load forecast has been developed on a billed basis, either on a system basis or on a class-specific basis, the manual adjustment should be on a billed basis, excluding losses.
A67: The distributor should determine the allocation of the savings to all customer classes in a reasonable manner, for both the LRAMVA and for the load forecast adjustment.
B69: 2011 | C69: 2012 | D69: 2013 | E69: 2014 | F69: Total for 2014
B70: kWh
A71: Amount used for CDM threshold for LRAMVA (2014) | B71: =E29 -> 1120000 | C71: =E30 -> 900000 | D71: =E31 -> 1493333.333 | E71: =E32 -> 1493333.333 | F71: =SUM(B71:E71) -> 5006666.667
A73: Manual Adjustment for 2014 Load Forecast (billed basis) | B73: =B71*(1+F48)*B55 -> 0 | C73: =C71*(1+F48)*C55 -> 450000 | D73: =D71*(1+F48)*D55 -> 1493333.333 | E73: =E71*(1+F48)*E55 -> 746666.6667 | F73: =SUM(B73:E73) -> 2690000
A75: Proposed Loss Factor (TLF) | B75: ='[2]Rate Class Energy Model'!$F$20-1 -> 0.04807554168 | C75: Format: X.XX%
A76: Manual Adjustment for 2014 Load Forecast (system purchased basis) | B76: =B73*(1+$B75) -> 0 | C76: =C73*(1+$B75) -> 471633.9938 | D76: =D73*(1+$B75) -> 1565126.142 | E76: 782563.0711 | F76: =SUM(B76:E76) -> 2819323.207
A77: Manual adjustment uses "gross" versus "net" (i.e. numbers multiplied by (1 + g). The Weight factor is also used calculate the impact of each year's program on the CDM adjustment to the 2014 load forecast.
